fUSD/lending_fUSD_20241021
["ID","MTS","AMOUNT","RATE_DAILY","PERIOD"]
[340612600,1729531837962,-151.150874,0.0002759,2]
[340612601,1729531837972,-211.430964,0.0002759,2]
[340612602,1729531837981,-221.626409,0.0002759,2]
[340612603,1729531837991,-931.880922,0.00027935,2]
[340612604,1729531838001,-211.430964,0.00027935,2]
[340612605,1729531838011,-221.626409,0.00027935,2]
[340612606,1729531838020,-151.150874,0.0002828,2]
[340612607,1729531838030,-931.880922,0.0002828,2]
[340612608,1729531838044,-211.430964,0.0002828,2]
[340612609,1729531838053,-221.626409,0.0002828,2]
[340612610,1729531838062,-931.880922,0.00028625,2]
[340612611,1729531838071,-211.430964,0.00028625,2]
[340612612,1729531838081,-221.626409,0.00028625,2]
[340612614,1729531838091,-151.150874,0.0002897,2]
[340612615,1729531838101,-931.880922,0.0002897,2]
[340612616,1729531838111,-211.430964,0.0002897,2]
[340612617,1729531838120,-221.626409,0.0002897,2]
[340612618,1729531838130,-13537.0,0.00029896,2]
[340612619,1729531838140,-1151.0,0.00029896,2]
[340612620,1729531838149,-7286.77902877,0.0003035,15]
[340612621,1729531838159,-150.25,0.00030976,7]
[340612622,1729531838169,-728.93431254,0.00032929,5]
[340612623,1729531838178,-256.12,0.00032929,2]
[340612624,1729531838188,-7286.77902877,0.00033149,15]
[340612625,1729531838198,-150.0,0.0003393,2]
[340612626,1729531838208,-28869.57192224,0.0003393,30]
[340612628,1729531838217,-260.30550305,0.0003393,2]
[340612630,1729531838230,-499.63881814,0.00035,14]
[340612631,1729531838240,-2104.6276955,0.00035,10]
[340612633,1729531838249,-151.48,0.00035939,2]
[340612635,1729531838259,-7286.77902877,0.00035949,15]
[340612637,1729531838268,-659.53,0.00036352,2]
[340612639,1729531838278,-23900.0,0.00036352,2]
[340612641,1729531838289,-4902.79,0.00036571,2]
[340612643,1729531838298,-200.0,0.00036571,2]
[340612645,1729531838307,-7286.77902877,0.00038749,15]
[340612647,1729531838318,-2779.39245916,0.00039,2]
[340612649,1729531838329,-293.88,0.0003924,2]
[340612651,1729531838339,-150.0,0.00040549,2]
[340612653,1729531838349,-756.49,0.00040715,2]
[340612655,1729531838359,-150.0,0.00040715,2]
[340612657,1729531838368,-314.29,0.00040715,2]
[340612659,1729531838378,-756.49,0.00040715,2]
[340612661,1729531838388,-756.49,0.00040715,2]
[340612663,1729531838397,-756.49,0.00040715,2]
[340612665,1729531838406,-756.49,0.00040715,2]
[340612667,1729531838417,-1520.58,0.00040715,2]
[340612669,1729531838426,-150.03,0.00040799,2]
[340612671,1729531838436,-500.0,0.00041095,2]
[340612673,1729531838445,-500.0,0.00041095,120]
[340612675,1729531838455,-157.0,0.00041104,2]
[340612676,1729531838465,-5110.82,0.00041104,2]
[340612678,1729531838475,-940.49,0.00041104,2]
[340612680,1729531838484,-200.83,0.00041158,2]
[340612682,1729531838493,-500.0,0.00041158,2]
[340612684,1729531838503,-460.37,0.00041158,2]
[340612686,1729531838513,-250.0,0.00041158,2]
[340612688,1729531838523,-1160.95,0.00041158,2]
[340612690,1729531838533,-250.0,0.00041364,2]
[340612692,1729531838542,-525.14418021,0.00041369,120]
[340612694,1729531838552,-250.0,0.00041436,120]
[340612696,1729531838562,-3649.66550706,0.00041436,2]
[340612698,1729531838576,-2146.17360397,0.00041436,2]
[340612700,1729531838587,-988.63282662,0.00041436,2]
[340612703,1729531838598,-3215.51806235,0.00041436,2]
[340612704,1729531838607,-293.88,0.00041504,2]
[340612706,1729531838617,-7286.77902877,0.00041549,15]
[340612708,1729531838627,-1000.0,0.00041549,2]
[340612711,1729531838637,-170.95,0.00041582,2]
[340612713,1729531838658,-217.91,0.00041641,2]
[340612715,1729531838668,-315.06,0.00041724,120]
[340612717,1729531838678,-6649.68478829,0.0004188,2]
[340612720,1729531838691,-3618.8111827,0.0004188,2]
[340612722,1729531838700,-228.0,0.00042392,2]
[340612725,1729531838718,-169.9992163,0.00042773,19]
[340612727,1729531838731,-1927.3296,0.000428,2]
[340612729,1729531838743,-3806.0061,0.000428,2]
[340612731,1729531838755,-500.0,0.00042873,2]
[340612734,1729531838769,-6608.385,0.0004289,30]
[340612736,1729531838780,-151.48,0.0004289,2]
[340612738,1729531838793,-151.48,0.0004289,2]
[340612740,1729531838805,-1000.0,0.00042899,2]
[340612742,1729531838818,-1000.0,0.00042899,2]
[340612745,1729531838830,-1000.0,0.00042899,2]
[340612747,1729531838840,-1000.0,0.00042899,2]
[340612749,1729531838850,-1000.0,0.00042899,2]
[340612751,1729531838860,-1000.0,0.00042899,2]
[340612753,1729531838870,-1000.0,0.00042899,2]
[340612755,1729531838880,-1000.0,0.00042899,2]
[340612757,1729531838891,-1000.0,0.00042899,2]
[340612759,1729531838903,-1000.0,0.00042899,2]
[340612761,1729531838914,-1000.0,0.00042899,2]
[340612763,1729531838926,-1000.0,0.00042899,2]
[340612766,1729531838937,-1000.0,0.00042899,2]
[340612768,1729531838949,-1000.0,0.00042899,2]
[340612770,1729531838960,-1000.0,0.00042899,2]
[340612772,1729531838971,-1000.0,0.00042899,2]
[340612774,1729531838982,-1000.0,0.00042899,2]
[340612776,1729531838993,-1000.0,0.00042899,2]
[340612778,1729531839004,-1000.0,0.00042899,2]
[340612781,1729531839015,-1000.0,0.00042899,2]
[340612783,1729531839027,-1000.0,0.00042899,2]
[340612785,1729531839040,-1000.0,0.00042899,2]
[340612787,1729531839051,-1000.0,0.00042899,2]
[340612789,1729531839062,-1000.0,0.00042899,2]
[340612791,1729531839074,-200.26248461,0.00042899,2]
[340612794,1729531839088,-799.73751539,0.00042899,2]
[340612796,1729531839100,-1000.0,0.00042899,2]
[340612798,1729531839111,-1000.0,0.00042899,2]
[340612800,1729531839123,-1000.0,0.00042899,2]
[340612803,1729531839135,-1000.0,0.00042899,2]
[340612805,1729531839146,-1000.0,0.00042899,2]
[340612807,1729531839157,-175.05421301,0.00042899,2]
[340612809,1729531839170,-824.94578699,0.00042899,2]
[340612811,1729531839181,-1000.0,0.00042899,2]
[340612813,1729531839192,-1000.0,0.00042899,2]
[340612815,1729531839202,-1000.0,0.00042899,2]
[340612818,1729531839213,-1000.0,0.00042899,2]
[340612820,1729531839224,-1000.0,0.00042899,2]
[340612822,1729531839237,-1000.0,0.00042899,2]
[340612824,1729531839247,-1000.0,0.00042899,2]
[340612826,1729531839259,-1000.0,0.00042899,2]
[340612828,1729531839269,-1000.0,0.00042899,2]
[340612830,1729531839280,-1000.0,0.00042899,2]
[340612832,1729531839291,-208.42030506,0.00042899,2]
[340612868,1729531839620,-603.28824077,0.00042899,2]
[340612876,1729531839682,-188.29145417,0.00042899,2]
[340612878,1729531839693,-1000.0,0.00042899,2]
[340612880,1729531839704,-729.38073583,0.00042899,2]
[340612900,1729531839891,-270.61926417,0.00042899,2]
[340612902,1729531839903,-1000.0,0.00042899,2]
[340612904,1729531839914,-1000.0,0.00042899,2]
[340612906,1729531839924,-1000.0,0.00042899,2]
[340612908,1729531839935,-1000.0,0.00042899,2]
[340612910,1729531839946,-1000.0,0.00042899,2]
[340612912,1729531839957,-1000.0,0.00042899,2]
[340612914,1729531839968,-1000.0,0.00042899,2]
[340612916,1729531839979,-571.7651617,0.00042899,2]
[340613133,1729531842903,-337.695,0.00042899,2]
[340613743,1729532877582,-169.95,0.00010959,2]
[340613744,1729532918222,150.0,0.00015,3]
[340613753,1729533031669,-572.0,0.000225,2]
[340613754,1729533031678,-1554.0,0.000225,2]
[340613755,1729533031688,-289.201,0.000245,2]
[340613756,1729533031698,-998.78,0.000249,2]
[340613757,1729533031707,-500.0,0.0002493,2]
[340613758,1729533031717,-500.0,0.00024938,2]
[340613759,1729533031727,-500.0,0.00024947,2]
[340613760,1729533031737,-3000.499,0.00024947,2]
[340613761,1729533031748,-4186.421,0.00024947,2]
[340613762,1729533031759,-500.0,0.00024956,2]
[340613763,1729533031768,-524.63,0.00024956,2]
[340613764,1729533031778,-500.0,0.00024965,2]
[340613765,1729533031788,-1387.17634583,0.00024965,2]
[340613766,1729533031799,-506.50365417,0.00024965,2]
[340613767,1729533031809,-182.17124173,0.00024974,2]
[340613768,1729533031820,-317.82875827,0.00024974,2]
[340613769,1729533031829,-500.0,0.00024982,2]
[340613770,1729533031839,-500.0,0.00024991,2]
[340613771,1729533031849,-500.0,0.00025,2]
[340613772,1729533031858,-150.0,0.00025,2]
[340613773,1729533031868,-332.17124173,0.00025,7]
[340613774,1729533031880,-101.62975827,0.00025,7]
[340613775,1729533031889,-150.0,0.00025999,2]
[340613776,1729533031899,-1000.0,0.00026,2]
[340613777,1729533031909,-1000.0,0.00026,2]
[340613778,1729533031919,-164.6868477,0.00026,2]
[340613779,1729533031930,-835.3131523,0.00026,2]
[340613780,1729533031940,-21.99155441,0.00026,2]
[340613781,1729533031951,-256.41264469,0.00026,2]
[340613782,1729533031964,-721.5958009,0.00026,2]
[340613783,1729533031974,-1000.0,0.00026,2]
[340613784,1729533031984,-759.0,0.00026,2]
[340613785,1729533031993,-681.90048354,0.00026,30]
[340613786,1729533032003,-917.82988559,0.00026,30]
[340613787,1729533032012,-517.27457707,0.00026,30]
[340613788,1729533032022,-1000.0,0.00026,30]
[340613789,1729533032031,-1000.0,0.00026,30]
[340613790,1729533032041,-1000.0,0.00026,30]
[340613791,1729533032051,-1000.0,0.00026,30]
[340613792,1729533032060,-1000.0,0.00026,30]
[340613793,1729533032070,-1000.0,0.00026,30]
[340613794,1729533032080,-700.0,0.00026,30]
[340613795,1729533032090,-1000.0,0.00026,30]
[340613796,1729533032099,-700.0,0.00026,30]
[340613797,1729533032110,-1000.0,0.00026,30]
[340613798,1729533032120,-700.0,0.00026,30]
[340613799,1729533032130,-1000.0,0.00026,30]
[340613800,1729533032140,-700.0,0.00026,30]
[340613801,1729533032149,-1000.0,0.00026,30]
[340613802,1729533032159,-500.0,0.00026,30]
[340613803,1729533032169,-700.0,0.00026,30]
[340613804,1729533032178,-1000.0,0.00026,30]
[340613805,1729533032188,-700.0,0.00026,30]
[340613806,1729533032197,-1000.0,0.00026,30]
[340613807,1729533032207,-700.0,0.00026,30]
[340613808,1729533032216,-500.0,0.00026,30]
[340613809,1729533032226,-1585.11114365,0.00026,30]
[340613810,1729533032237,-700.0,0.00026,30]
[340613811,1729533032247,-549.16359622,0.00026,30]
[340613812,1729533032257,-700.0,0.00026,30]
[340613813,1729533032267,-700.0,0.00026,30]
[340613814,1729533032277,-500.0,0.00026,30]
[340613815,1729533032287,-700.0,0.00026,30]
[340613816,1729533032297,-813.29478638,0.00026,30]
[340613817,1729533032308,-700.0,0.00026,30]
[340613818,1729533032317,-1362.55991445,0.00026,30]
[340613819,1729533032328,-500.0,0.00026,30]
[340613820,1729533032338,-600.0,0.00026,30]
[340613821,1729533032349,-500.0,0.00026,30]
[340613822,1729533032358,-600.0,0.00026,30]
[340613823,1729533032368,-500.0,0.00026,30]
[340613824,1729533032378,-600.0,0.00026,30]
[340613825,1729533032388,-600.0,0.00026,30]
[340613826,1729533032398,-500.0,0.00026,30]
[340613827,1729533032407,-600.0,0.00026,30]
[340613828,1729533032417,-500.0,0.00026,30]
[340613829,1729533032426,-600.0,0.00026,30]
[340613830,1729533032436,-500.0,0.00026,30]
[340613831,1729533032445,-600.0,0.00026,30]
[340613832,1729533032457,-500.0,0.00026,30]
[340613833,1729533032467,-600.0,0.00026,30]
[340613834,1729533032479,-500.0,0.00026,30]
[340613835,1729533032490,-600.0,0.00026,30]
[340613836,1729533032500,-500.0,0.00026,30]
[340613837,1729533032509,-600.0,0.00026,30]
[340613838,1729533032519,-500.0,0.00026,30]
[340613839,1729533032529,-600.0,0.00026,30]
[340613840,1729533032539,-968.81723108,0.00026,30]
[340613841,1729533032549,-600.0,0.00026,30]
[340613842,1729533032559,-861.85912007,0.00026,30]
[340613843,1729533032569,-999.18,0.00026075,2]
[340613844,1729533032579,-3289.73,0.00027397,2]
[340613845,1729533032588,-864.674,0.00027822,17]
[340613846,1729533032598,-167.086,0.00027822,17]
[340613847,1729533032608,-192.9,0.000281,7]
[340613848,1729533032617,-525.51,0.00029131,2]
[340613849,1729533032626,-500.0,0.00029695,5]
[340613850,1729533032636,-500.0,0.00029695,2]
[340613851,1729533032646,-1000.0,0.00029754,2]
[340613852,1729533032655,-282.77,0.00029788,120]
[340613853,1729533032665,-182.32,0.00030093,10]
[340613854,1729533032675,-347.68,0.00030093,10]
[340613855,1729533032685,-349.1,0.00030101,2]
[340613856,1729533032694,-23900.0,0.00030103,2]
[340613857,1729533032703,-289.73,0.00030127,10]
[340613858,1729533032713,-2000.0,0.00030137,2]
[340613859,1729533032723,-2000.0,0.00030137,2]
[340613860,1729533032732,-151.02592738,0.000305,5]
[340613861,1729533032742,-1000.0,0.00031065,2]
[340613862,1729533032751,-250.0,0.00031117,2]
[340613863,1729533032761,-2324.05,0.00031173,2]
[340613864,1729533032771,-250.0,0.00031366,2]
[340613865,1729533032780,-525.51,0.00031395,2]
[340613866,1729533032790,-500.0,0.00031444,2]
[340613867,1729533032799,-7614.42,0.00031445,2]
[340613868,1729533032808,-250.0,0.00031488,2]
[340613869,1729533032817,-155.37,0.00031529,2]
[340613870,1729533032827,-178.8,0.00031709,2]
[340613871,1729533032836,-1551.48,0.00032037,2]
[340613872,1729533032846,-150.0,0.00032444,2]
[340613873,1729533032855,-1139.75,0.00032542,2]
[340613874,1729533032865,-3573.48,0.00032633,2]
[340613875,1729533032874,-236.95,0.000327,2]
[340613876,1729533032884,-377.07,0.00032761,120]
[340613877,1729533032893,-2718.33,0.00032817,2]
[340613878,1729533032903,-184.91,0.00032926,2]
[340613879,1729533032913,-2640.87998626,0.00032986,15]
[340613880,1729533032922,-150.000001,0.00033,14]
[340613881,1729533032931,-1104.43678373,0.00033068,2]
[340613882,1729533032941,-560.273,0.00033086,2]
[340613883,1729533032950,-1292.0,0.00033086,2]
[340613884,1729533032959,-812.0,0.00033086,2]
[340613885,1729533032969,-450.0,0.00033086,2]
[340613886,1729533032978,-555.0,0.00033086,2]
[340613887,1729533032988,-936.0,0.00033086,2]
[340613888,1729533032997,-278.439,0.00033086,2]
[340613889,1729533033007,-208.782,0.00033086,2]
[340613890,1729533033016,-3359.0,0.00033086,2]
[340613891,1729533033026,-1910.0,0.00033086,2]
[340613892,1729533033036,-951.76,0.00033086,2]
[340613893,1729533033045,-176.99,0.0003315,120]
[340613894,1729533033054,-1000.0,0.00033151,2]
[340613895,1729533033064,-1000.0,0.00033387,10]
[340613896,1729533033074,-500.0,0.00033387,10]
[340613897,1729533033084,-1000.0,0.00033387,10]
[340613898,1729533033093,-500.0,0.00033387,10]
[340613899,1729533033103,-1000.0,0.00033387,10]
[340613900,1729533033114,-1000.0,0.00033387,10]
[340613901,1729533033123,-1000.0,0.00033387,10]
[340613902,1729533033133,-700.0,0.00033387,10]
[340613903,1729533033143,-1000.0,0.00033387,10]
[340613904,1729533033153,-700.0,0.00033387,10]
[340613905,1729533033162,-1000.0,0.00033387,10]
[340613906,1729533033171,-700.0,0.00033387,10]
[340613907,1729533033180,-1000.0,0.00033387,10]
[340613908,1729533033192,-700.0,0.00033387,10]
[340613909,1729533033202,-1000.0,0.00033387,10]
[340613910,1729533033218,-700.0,0.00033387,10]
[340613911,1729533033231,-1000.0,0.00033387,10]
[340613912,1729533033242,-1000.0,0.00033387,10]
[340613913,1729533033251,-1000.0,0.00033387,10]
[340613914,1729533033261,-500.0,0.00033387,10]
[340613915,1729533033270,-700.0,0.00033387,10]
[340613916,1729533033280,-1000.0,0.00033387,10]
[340613917,1729533033289,-700.0,0.00033387,10]
[340613918,1729533033299,-1000.0,0.00033387,10]
[340613919,1729533033308,-700.0,0.00033387,10]
[340613920,1729533033317,-700.0,0.00033387,10]
[340613921,1729533033519,-700.0,0.00033387,10]
[340613922,1729533033529,-700.0,0.00033387,10]
[340613923,1729533033539,-700.0,0.00033387,10]
[340613924,1729533033548,-700.0,0.00033387,10]
[340613925,1729533033558,-500.0,0.00033387,10]
[340613926,1729533033568,-500.0,0.00033387,10]
[340613927,1729533033578,-500.0,0.00033387,10]
[340613928,1729533033587,-510.62819932,0.00033387,10]
[340613929,1729533033597,-500.0,0.00033387,10]
[340613930,1729533033606,-600.0,0.00033387,10]
[340613931,1729533033615,-511.84840123,0.00033387,10]
[340613932,1729533033624,-600.0,0.00033387,10]
[340613933,1729533033634,-500.0,0.00033387,10]
[340613934,1729533033643,-504.93351935,0.00033387,10]
[340613935,1729533033653,-600.0,0.00033387,10]
[340613936,1729533033662,-500.0,0.00033387,10]
[340613937,1729533033671,-600.0,0.00033387,10]
[340613938,1729533033680,-500.0,0.00033387,10]
[340613939,1729533033689,-600.0,0.00033387,10]
[340613940,1729533033699,-600.0,0.00033387,10]
[340613941,1729533033709,-600.0,0.00033387,10]
[340613942,1729533033719,-600.0,0.00033387,10]
[340613943,1729533033729,-600.0,0.00033387,10]
[340613944,1729533033738,-500.0,0.00033387,10]
[340613945,1729533033748,-500.0,0.00033387,10]
[340613946,1729533033758,-500.0,0.00033387,10]
[340613947,1729533033767,-500.0,0.00033387,10]
[340613948,1729533033777,-500.0,0.00033387,10]
[340613949,1729533033786,-500.0,0.00033387,10]
[340613950,1729533033795,-500.0,0.00033387,10]
[340613951,1729533033805,-600.0,0.00033387,10]
[340613952,1729533033814,-500.0,0.00033387,10]
[340613953,1729533033823,-500.0,0.00033387,10]
[340613954,1729533033833,-600.0,0.00033387,10]
[340613955,1729533033842,-600.0,0.00033387,10]
[340613956,1729533033852,-500.0,0.00033387,10]
[340613957,1729533033861,-600.0,0.00033387,10]
[340613958,1729533033870,-500.0,0.00033387,10]
[340613959,1729533033880,-600.0,0.00033387,10]
[340613960,1729533033889,-1000.0,0.00033425,2]
[340613961,1729533033899,-1000.0,0.00033474,2]
[340613962,1729533033908,-282.77,0.00033512,120]
[340613963,1729533033917,-525.51,0.00033659,2]
[340613964,1729533033927,-1000.0,0.00033699,2]
[340613965,1729533033936,-279.64,0.00033933,2]
[340613966,1729533033946,-1000.0,0.00033973,2]
[340613967,1729533033955,-1000.0,0.00034247,2]
[340613968,1729533033964,-236.95,0.00034335,2]
[340613969,1729533033974,-1000.0,0.00034521,2]
[340613970,1729533033983,-150.0,0.00034548,10]
[340613971,1729533033998,-1000.0,0.00034795,2]
[340613972,1729533034008,-1000.0,0.00035068,2]
[340613973,1729533034017,-1000.0,0.00035342,2]
[340613974,1729533034027,-377.07,0.00035345,120]
[340613975,1729533034036,-2640.87998626,0.00035421,15]
[340613976,1729533034046,-1000.0,0.00035616,2]
[340613977,1729533034055,-1000.0,0.0003589,2]
[340613978,1729533034064,-525.51,0.00035923,2]
[340613979,1729533034073,-170.95,0.00035966,2]
[340613980,1729533034082,-236.95,0.0003597,2]
[340613981,1729533034092,-2203.732,0.00036086,2]
[340613982,1729533034102,-540.081,0.00036086,2]
[340613983,1729533034114,-1000.6637,0.00036163,2]
[340613984,1729533034123,-1000.0,0.00036164,2]
[340613985,1729533034133,-3000.0,0.000362,2]
[340613986,1729533034143,-1000.0,0.00036438,2]
[340613987,1729533034153,-1000.0,0.00036712,2]
[340613988,1729533034162,-1000.0,0.00036986,2]
[340613989,1729533034172,-1000.0,0.00037193,2]
[340613990,1729533034181,-282.77,0.00037235,120]
[340613991,1729533034191,-2000.0,0.0003726,30]
[340613992,1729533034201,-1000.0,0.0003726,2]
[340613993,1729533034211,-2000.0,0.00037534,30]
[340613994,1729533034220,-1000.0,0.00037534,2]
[340613995,1729533034230,-236.95,0.00037605,2]
[340613996,1729533034240,-2000.0,0.00037808,30]
[340613997,1729533034249,-1000.0,0.00037808,2]
[340613998,1729533034259,-2640.87998626,0.00037856,15]
[340613999,1729533034268,-500.0,0.00037913,3]
[340614000,1729533034277,-500.0,0.00037921,3]
[340614001,1729533034289,-377.07,0.00037929,120]
[340614002,1729533034299,-500.0,0.0003793,3]
[340614003,1729533034308,-500.0,0.00037939,3]
[340614004,1729533034318,-500.0,0.00037948,3]
[340614005,1729533034327,-500.0,0.00037957,3]
[340614006,1729533034336,-500.0,0.00037965,3]
[340614007,1729533034346,-500.0,0.00037974,3]
[340614008,1729533034355,-2000.0,0.00038082,30]
[340614009,1729533034364,-1000.0,0.00038082,2]
[340614010,1729533034373,-525.51,0.00038187,2]
[340614011,1729533034383,-2000.0,0.00038356,30]
[340614012,1729533034393,-1000.0,0.00038356,2]
[340614013,1729533034402,-500.0,0.0003862,5]
[340614014,1729533034411,-3000.0,0.000389,2]
[340614015,1729533034421,-156.0,0.000389,23]
[340614016,1729533034430,-236.95,0.0003924,2]
[340614017,1729533034439,-566.74277841,0.0003999,5]
[340614018,1729533034449,-2000.0,0.0004,120]
[340614019,1729533034459,-2000.0,0.0004,60]
[340614020,1729533034468,-2000.0,0.00040274,60]
[340614021,1729533034478,-2640.87998626,0.00040291,15]
[340614022,1729533034488,-525.51,0.00040451,2]
[340614023,1729533034497,-377.07,0.00040513,120]
[340614024,1729533034508,-2000.0,0.00040548,60]
[340614025,1729533034518,-2000.0,0.00040822,60]
[340614026,1729533034527,-501.88029257,0.00040875,5]
[340614027,1729533034537,-1000.0,0.00040912,2]
[340614028,1729533034547,-150.03,0.00040952,2]
[340614029,1729533034556,-282.77,0.00040959,120]
[340614030,1729533034566,-500.0,0.00041095,120]
[340614031,1729533034575,-500.0,0.00041095,120]
[340614032,1729533034585,-500.0,0.00041095,120]
[340614033,1729533034595,-500.0,0.00041095,120]
[340614034,1729533034605,-500.0,0.00041095,120]
[340614035,1729533034614,-313.17294421,0.00041095,120]
[340614036,1729533034624,-500.0,0.00041095,120]
[340614037,1729533034633,-1255.88,0.00041095,120]
[340614038,1729533034642,-500.0,0.00041095,120]
[340614039,1729533034652,-500.0,0.00041095,120]
[340614040,1729533034661,-403.05432626,0.00041095,120]
[340614041,1729533034670,-500.0,0.00041095,120]
[340614042,1729533034680,-500.0,0.00041095,120]
[340614043,1729533034690,-887.11,0.00041095,30]
[340614044,1729533034701,-500.0,0.00041095,120]
[340614045,1729533034710,-500.0,0.00041095,120]
[340614046,1729533034720,-500.0,0.00041095,120]
[340614047,1729533034729,-500.0,0.00041095,120]
[340614048,1729533034739,-500.0,0.00041095,120]
[340614049,1729533034749,-399.05665983,0.00041095,120]
[340614050,1729533034758,-639.21,0.00041095,120]
[340614051,1729533034767,-500.0,0.00041095,120]
[340614052,1729533034777,-500.0,0.00041095,120]
[340614053,1729533034787,-500.0,0.00041095,120]
[340614054,1729533034797,-500.0,0.00041095,14]
[340614055,1729533034807,-500.0,0.00041095,120]
[340614056,1729533034817,-812.81,0.00041095,120]
[340614057,1729533034827,-500.0,0.00041095,120]
[340614058,1729533034836,-500.0,0.00041095,120]
[340614059,1729533034848,-662.33,0.00041095,120]
[340614060,1729533034858,-500.0,0.00041095,120]
[340614061,1729533034867,-500.0,0.00041095,120]
[340614062,1729533034877,-500.0,0.00041095,120]
[340614063,1729533034887,-544.48240917,0.00041095,120]
[340614064,1729533034896,-500.0,0.00041095,120]
[340614065,1729533034905,-503.99422709,0.00041095,120]
[340614066,1729533034915,-500.0,0.00041095,120]
[340614067,1729533034924,-500.0,0.00041095,120]
[340614068,1729533034934,-157.0,0.00041096,2]
[340614069,1729533034943,-2000.0,0.00041096,60]
[340614070,1729533034952,-222.99,0.00041158,120]
[340614071,1729533034962,-172.61,0.00041158,2]
[340614072,1729533034971,-184.91,0.00041158,2]
[340614073,1729533034981,-454.11113444,0.00041369,120]
[340614074,1729533034991,-500.0,0.00041369,120]
[340614075,1729533035001,-500.0,0.00041369,120]
[340614076,1729533035010,-500.0,0.00041369,120]
[340614077,1729533035020,-528.87869923,0.00041369,120]
[340614078,1729533035030,-1255.88,0.00041369,120]
[340614079,1729533035040,-241.83,0.00041369,120]
[340614080,1729533035049,-500.0,0.00041369,120]
[340614081,1729533035059,-639.21,0.00041369,120]
[340614082,1729533035069,-500.0,0.00041369,120]
[340614083,1729533035078,-500.0,0.00041369,120]
[340614084,1729533035088,-500.0,0.00041369,14]
[340614085,1729533035097,-500.0,0.00041369,120]
[340614086,1729533035107,-500.0,0.00041369,120]
[340614087,1729533035119,-812.81,0.00041369,120]
[340614088,1729533035128,-500.0,0.00041369,120]
[340614089,1729533035137,-662.33,0.00041369,120]
[340614090,1729533035146,-500.0,0.00041369,120]
[340614091,1729533035156,-500.0,0.00041369,120]
[340614092,1729533035165,-500.0,0.00041369,120]
[340614093,1729533035174,-3000.0,0.000416,2]
[340614094,1729533035184,-500.0,0.00041643,120]
[340614095,1729533035194,-500.0,0.00041643,120]
[340614096,1729533035205,-500.0,0.00041643,120]
[340614097,1729533035214,-1255.88,0.00041643,120]
[340614098,1729533035224,-500.0,0.00041643,120]
[340614099,1729533035233,-639.21,0.00041643,120]
[340614100,1729533035244,-500.0,0.00041643,120]
[340614101,1729533035253,-500.0,0.00041643,120]
[340614102,1729533035262,-500.0,0.00041643,14]
[340614103,1729533035272,-500.0,0.00041643,120]
[340614104,1729533035282,-184.54895882,0.00041643,120]
[340614105,1729533035291,-812.81,0.00041643,120]
[340614106,1729533035301,-424.86536128,0.00041643,120]
[340614107,1729533035310,-662.33,0.00041643,120]
[340614108,1729533035320,-500.0,0.00041643,120]
[340614109,1729533035329,-500.0,0.00041643,120]
[340614110,1729533035339,-500.0,0.00041643,120]
[340614111,1729533035348,-500.0,0.00041917,120]